fUST/lending_fUST_20241025
["ID","MTS","AMOUNT","RATE_DAILY","PERIOD"]
[340787033,1729819842323,-500.0,0.00013698,2]
[340787034,1729819842333,-633.37,0.00013698,2]
[340787035,1729819842343,-2668.97,0.00013698,2]
[340787036,1729819842355,-500.0,0.00013698,2]
[340787037,1729819842364,-500.0,0.00013698,2]
[340787038,1729819842375,-620.76,0.00013698,2]
[340787039,1729819842384,-1209.98,0.00013698,2]
[340787040,1729819842394,-563.05036981,0.00013698,2]
[340787041,1729819842403,-1489.95,0.00013698,2]
[340787042,1729819842412,-1446.85,0.00013698,2]
[340787043,1729819842422,-578.98,0.00013698,2]
[340787044,1729819842431,-500.0,0.00013698,2]
[340787045,1729819842441,-500.0,0.00013698,2]
[340787046,1729819842451,-211.15741,0.00013698,2]
[340787047,1729819842460,-211.15741,0.00013698,2]
[340787048,1729819842470,-671.21,0.00013698,2]
[340787049,1729819842479,-211.15741,0.00013698,2]
[340787050,1729819842489,-211.15741,0.00013698,2]
[340787051,1729819842498,-925.17,0.00013698,2]
[340787052,1729819842507,-151.0,0.00013698,2]
[340787053,1729819842516,-695.93,0.00013698,2]
[340787054,1729819842526,-151.0,0.00013698,2]
[340787055,1729819842535,-760.39,0.00013698,2]
[340787056,1729819842544,-500.0,0.00013698,2]
[340787057,1729819842554,-506.19,0.00013698,2]
[340787058,1729819842563,-500.0,0.00013698,2]
[340787059,1729819842574,-151.0,0.00013698,2]
[340787060,1729819842583,-151.0,0.00013698,2]
[340787061,1729819842592,-713.01,0.00013698,2]
[340787062,1729819842601,-805.03,0.00013698,2]
[340787063,1729819842610,-1246.35,0.00013698,2]
[340787064,1729819842619,-198.94349051,0.00013698,2]
[340787065,1729819842628,-500.0,0.00013698,2]
[340787066,1729819842637,-305.237571,0.00013698,2]
[340787067,1729819842646,-151.0,0.00013698,2]
[340787068,1729819842655,-721.67,0.00013698,2]
[340787069,1729819842664,-1160.12,0.00013698,2]
[340787070,1729819842673,-1428.8,0.00013698,2]
[340787071,1729819842682,-565.57,0.00013698,2]
[340787072,1729819842692,-500.0,0.00013698,2]
[340787073,1729819842702,-500.0,0.00013698,2]
[340787074,1729819842711,-764.36,0.00013698,2]
[340787075,1729819842720,-500.0,0.00013698,2]
[340787076,1729819842729,-1110.31,0.00013698,2]
[340787077,1729819842739,-1272.36,0.00013698,2]
[340787078,1729819842748,-1021.12,0.00013698,2]
[340787079,1729819842757,-609.07,0.00013698,2]
[340787080,1729819842766,-1638.18,0.00013698,2]
[340787081,1729819842775,-888.89,0.00013698,2]
[340787082,1729819842784,-981.19,0.00013698,2]
[340787083,1729819842793,-670.66,0.00013698,2]
[340787084,1729819842803,-500.0,0.00013698,2]
[340787085,1729819842812,-1476.39,0.00013698,2]
[340787086,1729819842821,-500.0,0.00013698,2]
[340787087,1729819842830,-500.0,0.00013698,2]
[340787088,1729819842839,-536.93,0.00013698,2]
[340787089,1729819842849,-500.0,0.00013698,2]
[340787090,1729819842861,-151.0,0.00013698,2]
[340787091,1729819842870,-950.08,0.00013698,2]
[340787092,1729819842880,-1230.56,0.00013698,2]
[340787093,1729819842889,-500.0,0.00013698,2]
[340787094,1729819842898,-866.7,0.00013698,2]
[340787095,1729819842908,-151.0,0.00013698,2]
[340787096,1729819842917,-151.0,0.00013698,2]
[340787097,1729819842926,-151.0,0.00013698,2]
[340787098,1729819842935,-151.0,0.00013698,2]
[340787099,1729819842944,-500.0,0.00013698,2]
[340787100,1729819842953,-899.98,0.00013698,2]
[340787101,1729819842962,-151.0,0.00013698,2]
[340787102,1729819842972,-151.0,0.00013698,2]
[340787103,1729819842981,-283.136264,0.00013698,2]
[340787104,1729819842991,-500.0,0.00013698,2]
[340787105,1729819843000,-500.0,0.00013698,2]
[340787106,1729819843011,-829.31,0.00013698,2]
[340787108,1729819843021,-2033.9,0.00013698,2]
[340787110,1729819843030,-500.0,0.00013698,2]
[340787112,1729819843039,-500.0,0.00013698,2]
[340787114,1729819843049,-2425.05,0.00013698,2]
[340787115,1729819843059,-500.0,0.00013698,2]
[340787116,1729819843068,-597.52,0.00013698,2]
[340787117,1729819843078,-901.98,0.00013698,2]
[340787118,1729819843087,-151.0,0.00013698,2]
[340787119,1729819843097,-151.0,0.00013698,2]
[340787120,1729819843107,-151.0,0.00013698,2]
[340787121,1729819843116,-1412.62,0.00013698,2]
[340787122,1729819843127,-364.876147,0.00013698,2]
[340787123,1729819843137,-151.0,0.00013698,2]
[340787124,1729819843146,-364.876147,0.00013698,2]
[340787125,1729819843155,-151.0,0.00013698,2]
[340787126,1729819843165,-364.876147,0.00013698,2]
[340787128,1729819843175,-151.0,0.00013698,2]
[340787131,1729819843184,-327.272272,0.00013698,2]
[340787134,1729819843194,-327.272272,0.00013698,2]
[340787136,1729819843204,-2210.42,0.00013698,2]
[340787138,1729819843213,-949.87,0.00013698,2]
[340787140,1729819843223,-364.876147,0.00013698,2]
[340787141,1729819843233,-364.876147,0.00013698,2]
[340787142,1729819843242,-364.876147,0.00013698,2]
[340787143,1729819843252,-500.0,0.00013698,2]
[340787144,1729819843262,-151.0,0.00013698,2]
[340787145,1729819843271,-954.31,0.00013698,2]
[340787146,1729819843281,-783.08,0.00013698,2]
[340787147,1729819843291,-1069.13071925,0.00013698,2]
[340787148,1729819843312,-171.81928075,0.00013698,2]
[340787149,1729819843322,-743.51,0.00013698,2]
[340787150,1729819843332,-500.0,0.00013698,2]
[340787151,1729819843342,-500.0,0.00013698,2]
[340787152,1729819843352,-454.719239,0.00013698,2]
[340787153,1729819843361,-454.719239,0.00013698,2]
[340787154,1729819843371,-1095.82,0.00013698,2]
[340787155,1729819843381,-454.719239,0.00013698,2]
[340787156,1729819843391,-500.0,0.00013698,2]
[340787157,1729819843401,-454.719239,0.00013698,2]
[340787158,1729819843411,-500.0,0.00013698,2]
[340787159,1729819843422,-454.719239,0.00013698,2]
[340787160,1729819843431,-454.719239,0.00013698,2]
[340787161,1729819843441,-976.99,0.00013698,2]
[340787162,1729819843451,-629.807839,0.00013698,2]
[340787163,1729819843460,-629.807839,0.00013698,2]
[340787164,1729819843470,-1126.2,0.00013698,2]
[340787165,1729819843480,-629.807839,0.00013698,2]
[340787166,1729819843490,-151.0,0.00013698,2]
[340787167,1729819843500,-629.807839,0.00013698,2]
[340787168,1729819843510,-629.807839,0.00013698,2]
[340787169,1729819843520,-1428.01,0.00013698,2]
[340787170,1729819843529,-629.807839,0.00013698,2]
[340787171,1729819843539,-151.0,0.00013698,2]
[340787172,1729819843549,-151.0,0.00013698,2]
[340787173,1729819843559,-151.0,0.00013698,2]
[340787174,1729819843569,-151.0,0.00013698,2]
[340787175,1729819843580,-151.0,0.00013698,2]
[340787176,1729819843590,-151.0,0.00013698,2]
[340787177,1729819843600,-500.0,0.00013698,2]
[340787178,1729819843611,-504.36,0.00013698,2]
[340787179,1729819843621,-500.0,0.00013698,2]
[340787180,1729819843632,-1395.09,0.00013698,2]
[340787181,1729819843642,-11448.99825125,0.00013698,2]
[340787185,1729819844044,-961.5,0.00013698,2]
[340787186,1729819844058,-13294.43006823,0.00013698,2]
[340787189,1729819846446,-752.95168052,0.00013698,2]
[340787190,1729819846457,-752.33,0.00013698,2]
[340787191,1729819846467,-151.0,0.00013698,2]
[340787192,1729819846476,-957.96,0.00013698,2]
[340787193,1729819846486,-151.0,0.00013698,2]
[340787194,1729819846496,-151.0,0.00013698,2]
[340787195,1729819846505,-564.29882675,0.00013698,2]
[340787197,1729819874107,284.19,0.00010959,2]
[340787198,1729819884708,227.38,0.00010959,2]
[340787199,1729819895277,189.48,0.00010959,2]
[340787200,1729819905871,157.9,0.00010959,2]
[340787201,1729819916633,789.52,0.00010959,2]
[340787202,1729819940200,1738.4654581,0.00022,60]
[340787204,1729820058135,300.705143,0.00016,6]
[340787210,1729820684469,153.0,0.000198,60]
[340787213,1729821029200,452.86,0.00010959,2]
[340787258,1729821044031,-150.11886,0.000126,2]
[340787259,1729821044042,-181.6627861,0.00012625,2]
[340787260,1729821044052,-300.0,0.0001355,2]
[340787261,1729821044062,-300.0,0.0001355,2]
[340787262,1729821044071,-10871.11764236,0.00013551,2]
[340787263,1729821044081,-467.10187842,0.00013624,2]
[340787264,1729821044090,-153.0,0.0001363,2]
[340787265,1729821044100,-500.0,0.00013673,2]
[340787266,1729821044109,-6248.24783748,0.00013678,2]
[340787267,1729821044119,-322.07660186,0.00013678,2]
[340787268,1729821044128,-207.64026718,0.00013688,2]
[340787269,1729821044137,-11216.82260012,0.00013688,2]
[340787299,1729821206581,273.37336231,9.9e-05,2]
[340787300,1729821222895,273.37336231,9.9e-05,2]
[340787301,1729821238080,273.37336231,9.9e-05,2]
[340787302,1729821253270,273.37336231,9.9e-05,2]
[340787303,1729821268606,273.37336231,9.9e-05,2]
[340787304,1729821283756,273.37336231,9.9e-05,2]
[340787305,1729821299497,273.37336231,9.9e-05,2]
[340787306,1729821314730,273.37336231,9.9e-05,2]
[340787307,1729821330399,273.37336231,9.9e-05,2]
[340787308,1729821345689,273.37336231,9.9e-05,2]
[340787309,1729821361377,273.37336231,9.9e-05,2]
[340787310,1729821376538,273.37336231,9.9e-05,2]
[340787311,1729821392151,273.37336231,9.9e-05,2]
[340787312,1729821408398,273.37336231,9.9e-05,2]
[340787314,1729821735761,153.0,0.000198,60]
[340787394,1729822240447,-1500.7872997,0.00012645,2]
[340787395,1729822240697,-502.4903383,0.00012654,2]
[340787396,1729822240708,-194.03283152,0.000129,2]
[340787397,1729822240718,-5085.0,0.00013,2]
[340787398,1729822240728,-300.0,0.00013578,2]
[340787399,1729822240739,-300.0,0.00013578,2]
[340787400,1729822240752,-5170.94002823,0.00013579,2]
[340787401,1729822240762,-153.0,0.0001363,2]
[340787402,1729822240772,-9854.32772535,0.00013644,2]
[340787403,1729822240782,-500.0,0.00013673,2]
[340787404,1729822240792,-500.0,0.00013673,2]
[340787405,1729822240802,-500.0,0.00013673,2]
[340787406,1729822240811,-500.0,0.00013673,2]
[340787407,1729822240820,-153.26127241,0.00013678,2]
[340787408,1729822240830,-6803.61349722,0.00013678,2]
[340787409,1729822240839,-25633.0621403,0.00013678,2]
[340787414,1729822242998,-17232.00051755,0.00013678,2]
[340787417,1729822243012,-4903.585161,0.00013678,2]
[340787419,1729822243024,-4667.99358055,0.00013678,2]
[340787427,1729822378372,550.42,0.00010959,2]
[340787429,1729822789845,153.0,0.000198,60]
[340787430,1729822873007,250218.61092084,0.00022,60]
[340787432,1729823076348,163.629025,0.00010498,2]
[340787433,1729823076624,163.629025,0.00010577,2]
[340787434,1729823076899,163.629025,0.00010655,2]
[340787435,1729823077151,163.629025,0.00010733,2]
[340787436,1729823077578,163.629025,0.00010811,2]
[340787437,1729823077640,163.629025,0.00010889,2]
[340787438,1729823077849,163.629025,0.00010967,2]
[340787443,1729823198307,-163.629025,0.00011046,2]
[340787444,1729823198347,-3000.0,0.00011142,2]
[340787445,1729823198381,-300.0,0.00011233,2]
[340787446,1729823198415,-300.0,0.00011233,2]
[340787447,1729823198449,-6236.370975,0.00011234,2]
[340787448,1729823252384,-300.0,0.00011233,2]
[340787449,1729823252419,-300.0,0.00011233,2]
[340787450,1729823252453,-9400.0,0.00011234,2]
[340787455,1729823301030,-9243.629025,0.00011234,2]
[340787456,1729823301065,-300.0,0.00011252,2]
[340787457,1729823301098,-300.0,0.00011252,2]
[340787458,1729823301132,-156.370975,0.00011253,2]
[340787505,1729823438211,-499.77566816,0.00011253,2]
[340787507,1729823438226,-1516.35105714,0.00011253,2]
[340787508,1729823438237,-250.0,0.00011494,2]
[340787509,1729823438247,-524.1769268,0.00011494,2]
[340787510,1729823438256,-798.08218375,0.00011984,2]
[340787511,1729823438757,-824.40250433,0.00011984,2]
[340787512,1729823438857,-1204.43421632,0.00011984,2]
[340787513,1729823438867,-185.58421491,0.000123,2]
[340787514,1729823438876,-300.0,0.00012499,2]
[340787515,1729823438885,-300.0,0.00012499,2]
[340787516,1729823438895,-6593.04329187,0.000125,2]
[340787517,1729823438905,-155.5231776,0.000125,2]
[340787518,1729823438914,-153.0,0.00012841,2]
[340787519,1729823438923,-153.0,0.00012941,2]
[340787520,1729823438932,-153.0,0.00012941,2]
[340787521,1729823438942,-153.0,0.000131,2]
[340787522,1729823438951,-5200.75370661,0.00013573,2]
[340787523,1729823438961,-179.67649701,0.00013588,2]
[340787524,1729823438971,-465.10509392,0.0001359,2]
[340787525,1729823438981,-153.0,0.0001363,2]
[340787526,1729823438992,-15452.82078358,0.00013672,2]
[340787527,1729823439003,-175.29584569,0.00013672,2]
[340787528,1729823439014,-352.75037091,0.00013673,2]
[340787529,1729823439023,-500.0,0.00013673,2]
[340787530,1729823439034,-500.0,0.00013673,2]
[340787531,1729823439044,-500.0,0.00013673,2]
[340787532,1729823439054,-2537.37611687,0.00013678,2]
[340787533,1729823439063,-20641.54376106,0.00013678,2]
[340787550,1729823440163,-9750.02891834,0.00013678,2]
[340787552,1729823440174,-152.769791,0.00013688,2]
[340787554,1729823440185,-151.551693,0.00013688,2]
[340787557,1729823440196,-151.0,0.00013688,2]
[340787559,1729823440206,-151.656552,0.00013688,2]
[340787561,1729823440216,-216.12815,0.00013688,2]
[340787562,1729823440225,-216.12815,0.00013688,2]
[340787563,1729823440236,-216.12815,0.00013688,2]
[340787564,1729823440246,-216.12815,0.00013688,2]
[340787565,1729823440255,-151.0,0.00013688,2]
[340787566,1729823440266,-151.0,0.00013688,2]
[340787567,1729823440275,-200.696922,0.00013688,2]
[340787568,1729823440284,-217.122,0.00013688,2]
[340787569,1729823440294,-151.0,0.00013688,2]
[340787570,1729823440304,-151.0,0.00013688,2]
[340787571,1729823440315,-151.0,0.00013688,2]
[340787572,1729823440325,-151.0,0.00013688,2]
[340787573,1729823440336,-151.0,0.00013688,2]
[340787574,1729823440346,-151.0,0.00013688,2]
[340787575,1729823440356,-151.0,0.00013688,2]
[340787576,1729823440365,-230.488287,0.00013688,2]
[340787577,1729823440375,-152.896704,0.00013688,2]
[340787578,1729823440385,-244.317199,0.00013688,2]
[340787579,1729823440396,-244.317199,0.00013688,2]
[340787580,1729823440405,-244.317199,0.00013688,2]
[340787581,1729823440415,-244.317199,0.00013688,2]
[340787582,1729823440426,-257.272878,0.00013688,2]
[340787583,1729823440437,-257.272878,0.00013688,2]
[340787584,1729823440448,-257.272878,0.00013688,2]
[340787585,1729823440459,-257.272878,0.00013688,2]
[340787586,1729823440469,-151.0,0.00013688,2]
[340787587,1729823440479,-151.0,0.00013688,2]
[340787588,1729823440489,-154.725765,0.00013688,2]
[340787589,1729823440499,-151.0,0.00013688,2]
[340787590,1729823440509,-151.0,0.00013688,2]
[340787591,1729823440519,-218.987046,0.00013688,2]
[340787592,1729823440531,-151.0,0.00013688,2]
[340787593,1729823440540,-151.0,0.00013688,2]
[340787594,1729823440552,-151.0,0.00013688,2]
[340787595,1729823440562,-151.0,0.00013688,2]
[340787596,1729823440571,-151.0,0.00013688,2]
[340787597,1729823440580,-151.746123,0.00013688,2]
[340787598,1729823440589,-153.822447,0.00013688,2]
[340787599,1729823440598,-151.0,0.00013688,2]
[340787600,1729823440611,-203.93135,0.00013688,2]
[340787601,1729823440623,-151.0,0.00013688,2]
[340787602,1729823440632,-151.0,0.00013688,2]
[340787603,1729823440642,-151.0,0.00013688,2]
[340787604,1729823440840,-151.0,0.00013688,2]
[340787605,1729823440850,-151.0,0.00013688,2]
[340787606,1729823440860,-151.0,0.00013688,2]
[340787607,1729823440871,-491.011571,0.00013688,2]
[340787608,1729823440882,-491.011571,0.00013688,2]
[340787609,1729823440893,-491.011571,0.00013688,2]
[340787610,1729823440904,-491.011571,0.00013688,2]
[340787611,1729823440914,-491.011571,0.00013688,2]
[340787612,1729823440926,-491.011571,0.00013688,2]
[340787613,1729823440936,-152.563459,0.00013688,2]
[340787614,1729823440950,-151.0,0.00013688,2]
[340787615,1729823440961,-192.484595,0.00013688,2]
[340787616,1729823440970,-151.0,0.00013688,2]
[340787617,1729823440980,-192.484595,0.00013688,2]
[340787618,1729823440990,-297.136412,0.00013688,2]
[340787619,1729823440999,-192.484595,0.00013688,2]
[340787620,1729823441008,-192.484595,0.00013688,2]
[340787621,1729823441018,-152.686419,0.00013688,2]
[340787622,1729823441028,-289.10619,0.00013688,2]
[340787623,1729823441038,-157.534137,0.00013688,2]
[340787624,1729823441047,-157.534137,0.00013688,2]
[340787625,1729823441057,-155.329229,0.00013688,2]
[340787626,1729823441066,-157.534137,0.00013688,2]
[340787627,1729823441076,-157.534137,0.00013688,2]
[340787628,1729823441087,-152.528799,0.00013688,2]
[340787629,1729823441097,-152.528799,0.00013688,2]
[340787630,1729823441108,-152.528799,0.00013688,2]
[340787631,1729823441118,-152.528799,0.00013688,2]
[340787632,1729823441127,-151.0,0.00013688,2]
[340787633,1729823441138,-153.080405,0.00013688,2]
[340787634,1729823441148,-228.686305,0.00013688,2]
[340787635,1729823441159,-228.686305,0.00013688,2]
[340787636,1729823441170,-228.686305,0.00013688,2]
[340787637,1729823441179,-228.686305,0.00013688,2]
[340787638,1729823441190,-151.0,0.00013688,2]
[340787639,1729823441203,-151.0,0.00013688,2]
[340787640,1729823441213,-151.0,0.00013688,2]
[340787641,1729823441224,-151.0,0.00013688,2]
[340787642,1729823441235,-151.0,0.00013688,2]
[340787643,1729823441246,-151.0,0.00013688,2]
[340787644,1729823441256,-151.0,0.00013688,2]
[340787645,1729823441266,-154.82866179,0.00013688,2]
[340787646,1729823441275,-1003.263603,0.00013688,2]
[340787647,1729823441284,-1003.263603,0.00013688,2]
[340787648,1729823441294,-1003.263603,0.00013688,2]
[340787649,1729823441304,-1003.263603,0.00013688,2]
[340787650,1729823441313,-151.0,0.00013688,2]
[340787651,1729823441323,-349.975241,0.00013688,2]
[340787652,1729823441332,-151.0,0.00013688,2]
[340787653,1729823441341,-349.975241,0.00013688,2]
[340787654,1729823441351,-151.0,0.00013688,2]
[340787655,1729823441361,-349.975241,0.00013688,2]
[340787656,1729823441370,-151.0,0.00013688,2]
[340787657,1729823441379,-349.975241,0.00013688,2]
[340787658,1729823441388,-221.063826,0.00013688,2]
[340787659,1729823441398,-221.063826,0.00013688,2]
[340787660,1729823441409,-221.063826,0.00013688,2]
[340787661,1729823441418,-221.063826,0.00013688,2]
[340787662,1729823441428,-228.137395,0.00013688,2]
[340787663,1729823441437,-228.137395,0.00013688,2]
[340787664,1729823441447,-228.137395,0.00013688,2]
[340787665,1729823441457,-228.137395,0.00013688,2]
[340787666,1729823441466,-153.121897,0.00013688,2]
[340787667,1729823441475,-151.0,0.00013688,2]
[340787668,1729823441485,-151.0,0.00013688,2]
[340787669,1729823441495,-151.0,0.00013688,2]
[340787670,1729823441504,-151.0,0.00013688,2]
[340787671,1729823441513,-399.139671,0.00013688,2]
[340787672,1729823441523,-151.0,0.00013688,2]
[340787673,1729823441533,-399.139671,0.00013688,2]
[340787674,1729823441543,-151.0,0.00013688,2]
[340787675,1729823441552,-482.898149,0.00013688,2]
[340787676,1729823441561,-482.898149,0.00013688,2]
[340787677,1729823441570,-399.139671,0.00013688,2]
[340787678,1729823441579,-399.139671,0.00013688,2]
[340787679,1729823441589,-482.898149,0.00013688,2]
[340787680,1729823441598,-482.898149,0.00013688,2]
[340787681,1729823441611,-151.912941,0.00013688,2]
[340787682,1729823441621,-471.065487,0.00013688,2]
[340787683,1729823441630,-471.065487,0.00013688,2]
[340787684,1729823441640,-471.065487,0.00013688,2]
[340787685,1729823441651,-471.065487,0.00013688,2]
[340787686,1729823441660,-342.10188,0.00013688,2]
[340787687,1729823441669,-342.10188,0.00013688,2]
[340787688,1729823441678,-342.10188,0.00013688,2]
[340787689,1729823441690,-342.10188,0.00013688,2]
[340787690,1729823441699,-342.10188,0.00013688,2]
[340787691,1729823441709,-342.10188,0.00013688,2]
[340787692,1729823441717,-151.0,0.00013688,2]
[340787693,1729823441727,-151.0,0.00013688,2]
[340787694,1729823441737,-151.0,0.00013688,2]
[340787695,1729823441746,-151.0,0.00013688,2]
[340787696,1729823441756,-151.0,0.00013688,2]
[340787697,1729823441765,-287.907276,0.00013688,2]
[340787698,1729823441774,-151.88636,0.00013688,2]
[340787699,1729823441783,-151.0,0.00013688,2]
[340787700,1729823441792,-151.0,0.00013688,2]
[340787701,1729823441802,-151.0,0.00013688,2]
[340787702,1729823441811,-151.0,0.00013688,2]
[340787703,1729823441820,-151.0,0.00013688,2]
[340787704,1729823441830,-151.0,0.00013688,2]
[340787705,1729823441839,-266.534221,0.00013688,2]
[340787706,1729823441848,-266.534221,0.00013688,2]
[340787707,1729823441857,-266.534221,0.00013688,2]
[340787708,1729823441866,-22836.3850518,0.00013688,2]
[340787709,1729823441876,-243132.581435,0.00013688,2]
[340787710,1729823441885,-150.85,0.00013696,2]
[340787711,1729823441894,-528.0,0.00013696,2]
[340787712,1729823441904,-2397.0,0.00013696,2]
[340787713,1729823441913,-1151.0,0.00013696,2]
[340787714,1729823441922,-180.73303179,0.00013697,2]
[340787715,1729823441932,-1608.74107542,0.00013697,2]
[340787716,1729823441941,-225.05872971,0.00013698,2]
[340787717,1729823441951,-500.0,0.00013698,2]
[340787718,1729823441960,-291.68277858,0.00013698,2]
[340787719,1729823441970,-500.42260886,0.00013698,2]
[340787720,1729823441980,-500.0,0.00013698,2]
[340787721,1729823441990,-150.071,0.00013698,2]
[340787722,1729823441999,-577.69427684,0.00013698,2]
[340787723,1729823442008,-151.0,0.00013698,2]
[340787724,1729823442017,-151.0,0.00013698,2]
[340787725,1729823442027,-151.0,0.00013698,2]
[340787726,1729823442036,-151.0,0.00013698,2]
[340787727,1729823442045,-151.0,0.00013698,2]
[340787728,1729823442055,-151.0,0.00013698,2]
[340787729,1729823442064,-151.0,0.00013698,2]
[340787730,1729823442074,-151.0,0.00013698,2]
[340787731,1729823442083,-151.0,0.00013698,2]
[340787732,1729823442092,-151.0,0.00013698,2]
[340787733,1729823442101,-256.575884,0.00013698,2]
[340787734,1729823442111,-739.06,0.00013698,2]
[340787735,1729823442120,-500.0,0.00013698,2]
[340787736,1729823442130,-1150.09,0.00013698,2]
[340787737,1729823442139,-500.0,0.00013698,2]
[340787738,1729823442148,-679.24,0.00013698,2]
[340787739,1729823442157,-510.96,0.00013698,2]
[340787740,1729823442166,-841.96,0.00013698,2]
[340787741,1729823442175,-500.0,0.00013698,2]
[340787742,1729823442185,-216.12815,0.00013698,2]
[340787743,1729823442195,-216.12815,0.00013698,2]
[340787744,1729823442204,-216.12815,0.00013698,2]
[340787745,1729823442215,-216.12815,0.00013698,2]
[340787746,1729823442224,-216.12815,0.00013698,2]
[340787747,1729823442234,-216.12815,0.00013698,2]
[340787748,1729823442243,-216.12815,0.00013698,2]
[340787749,1729823442252,-216.12815,0.00013698,2]
[340787750,1729823442262,-542.53,0.00013698,2]
[340787751,1729823442272,-507.79913886,0.00013698,2]
[340787752,1729823442281,-216.12815,0.00013698,2]
[340787753,1729823442290,-216.12815,0.00013698,2]
[340787754,1729823442300,-216.12815,0.00013698,2]
[340787755,1729823442309,-216.12815,0.00013698,2]
[340787756,1729823442318,-216.12815,0.00013698,2]
[340787757,1729823442327,-216.12815,0.00013698,2]
[340787758,1729823442337,-216.12815,0.00013698,2]
[340787759,1729823442346,-216.128143,0.00013698,2]
[340787760,1729823442355,-323.15695383,0.00013698,2]
[340787761,1729823442364,-1640.04,0.00013698,2]
[340787762,1729823442374,-1028.5,0.00013698,2]
[340787763,1729823442383,-562.17,0.00013698,2]
[340787764,1729823442392,-500.0,0.00013698,2]
[340787765,1729823442401,-559.88,0.00013698,2]
[340787766,1729823442411,-500.0,0.00013698,2]
[340787767,1729823442420,-827.21,0.00013698,2]
[340787768,1729823442430,-509.63020283,0.00013698,2]
[340787769,1729823442439,-500.0,0.00013698,2]
[340787770,1729823442450,-190.49394483,0.00013698,2]
[340787771,1729823442459,-151.0,0.00013698,2]
[340787772,1729823442468,-151.0,0.00013698,2]
[340787773,1729823442478,-151.0,0.00013698,2]
[340787774,1729823442488,-151.0,0.00013698,2]
[340787775,1729823442497,-500.0,0.00013698,2]
[340787776,1729823442506,-151.0,0.00013698,2]
[340787777,1729823442515,-151.0,0.00013698,2]
[340787778,1729823442525,-151.0,0.00013698,2]
[340787779,1729823442534,-151.0,0.00013698,2]
[340787780,1729823442543,-500.0,0.00013698,2]
[340787781,1729823442553,-500.0,0.00013698,2]
[340787782,1729823442562,-500.0,0.00013698,2]
[340787783,1729823442571,-500.0,0.00013698,2]
[340787784,1729823442581,-500.0,0.00013698,2]
[340787785,1729823442591,-286.789822,0.00013698,2]
[340787786,1729823442600,-897.95,0.00013698,2]
[340787787,1729823442614,-502.31,0.00013698,2]
[340787788,1729823442623,-644.99859799,0.00013698,2]
[340787789,1729823442634,-500.0,0.00013698,2]
[340787790,1729823442643,-500.0,0.00013698,2]
[340787791,1729823442652,-500.0,0.00013698,2]
[340787792,1729823442662,-151.0,0.00013698,2]
[340787793,1729823442675,-500.0,0.00013698,2]
[340787794,1729823442684,-151.0,0.00013698,2]
[340787795,1729823442693,-151.0,0.00013698,2]
[340787796,1729823442702,-151.0,0.00013698,2]
[340787798,1729823442712,-151.0,0.00013698,2]
[340787800,1729823442722,-152.934809,0.00013698,2]
[340787803,1729823442733,-500.0,0.00013698,2]
[340787805,1729823442742,-574.44224295,0.00013698,2]
[340787806,1729823442761,-10.80098383,0.00013698,2]
[340787807,1729823442770,-292.06612487,0.00013698,2]
[340787808,1729823442781,-286.57387513,0.00013698,2]
[340787809,1729823442790,-846.5,0.00013698,2]